[Event "Titled Tuesday Blitz March 29 Early 2022"]
[White "Mortazavi, Ali"]
[Black "Zhao, Jun"]
[WhiteFideId "401323"]
[BlackFideId "8602522"]
[WhiteElo "2339"]
[BlackElo "2547"]
[Result "0-1"]
[Round "04"]
[TimeControl "180+1"]
[Date "2022.03.29"]
[WhiteClock "0:00:04"]
[BlackClock "0:00:03"]

1. Nf3 {[%clk 0:03:00]}  Nf6 {[%clk 0:02:58]} 2. g3 {[%clk 0:03:01]}  d5 {[%clk 0:02:58]} 3. Bg2 {[%clk 0:03:01]}  c6 {[%clk 0:02:58]} 4. O-O {[%clk 0:03:02]}  Bg4 {[%clk 0:02:59]} 5. d3 {[%clk 0:03:03]}  Nbd7 {[%clk 0:02:58]} 6. c4 {[%clk 0:03:04]}  e6 {[%clk 0:02:58]} 7. Be3 {[%clk 0:03:04]}  Bd6 {[%clk 0:02:54]} 8. Qb3 {[%clk 0:03:03]}  Qc7 {[%clk 0:02:40]} 9. Nc3 {[%clk 0:03:03]}  O-O {[%clk 0:02:40]} 10. Rac1 {[%clk 0:02:56]}  a6 {[%clk 0:02:36]} 11. h3 {[%clk 0:02:34]}  Bxf3 {[%clk 0:02:25]} 12. exf3 {[%clk 0:02:33]}  Rac8 {[%clk 0:02:11]} 13. f4 {[%clk 0:02:26]}  Qb8 {[%clk 0:02:11]} 14. cxd5 {[%clk 0:02:13]}  exd5 {[%clk 0:02:05]} 15. Rfe1 {[%clk 0:01:59]}  Rfe8 {[%clk 0:02:04]} 16. Bd4 {[%clk 0:01:41]}  Bc5 {[%clk 0:01:50]} 17. Bxc5 {[%clk 0:01:35]}  Nxc5 {[%clk 0:01:49]} 18. Qc2 {[%clk 0:01:27]}  Ncd7 {[%clk 0:01:41]} 19. d4 {[%clk 0:01:20]}  Rxe1+ {[%clk 0:01:39]} 20. Rxe1 {[%clk 0:01:19]}  Re8 {[%clk 0:01:40]} 21. Re3 {[%clk 0:01:19]}  Nb6 {[%clk 0:01:30]} 22. b3 {[%clk 0:01:19]}  Rxe3 {[%clk 0:01:23]} 23. fxe3 {[%clk 0:01:18]}  Qe8 {[%clk 0:01:24]} 24. Kf2 {[%clk 0:01:17]}  Nc8 {[%clk 0:01:24]} 25. g4 {[%clk 0:01:11]}  Nd6 {[%clk 0:01:23]} 26. g5 {[%clk 0:01:10]}  Nd7 {[%clk 0:01:15]} 27. Qd3 {[%clk 0:00:57]}  f5 {[%clk 0:01:14]} 28. Bf3 {[%clk 0:00:46]}  Qe6 {[%clk 0:01:10]} 29. h4 {[%clk 0:00:45]}  g6 {[%clk 0:00:55]} 30. a4 {[%clk 0:00:44]}  Kf8 {[%clk 0:00:56]} 31. Kg3 {[%clk 0:00:38]}  Ke7 {[%clk 0:00:53]} 32. Qd2 {[%clk 0:00:34]}  Nb6 {[%clk 0:00:35]} 33. h5 {[%clk 0:00:30]}  Kd8 {[%clk 0:00:29]} 34. hxg6 {[%clk 0:00:27]}  hxg6 {[%clk 0:00:28]} 35. Kf2 {[%clk 0:00:20]}  Ne4+ {[%clk 0:00:23]} 36. Bxe4 {[%clk 0:00:18]}  fxe4 {[%clk 0:00:20]} 37. Kg3 {[%clk 0:00:15]}  Nc8 {[%clk 0:00:19]} 38. Qh2 {[%clk 0:00:15]}  Ne7 {[%clk 0:00:19]} 39. Qh8+ {[%clk 0:00:14]}  Kc7 {[%clk 0:00:19]} 40. a5 {[%clk 0:00:12]}  Qd6 {[%clk 0:00:16]} 41. Qh7 {[%clk 0:00:09]}  Kb8 {[%clk 0:00:09]} 42. Na4 {[%clk 0:00:09]}  Nf5+ {[%clk 0:00:07]} 43. Kh3 {[%clk 0:00:09]}  Nxe3 {[%clk 0:00:06]} 44. Nc5 {[%clk 0:00:10]}  Qc7 {[%clk 0:00:04]} 45. Qxg6 {[%clk 0:00:09]}  Qxf4 {[%clk 0:00:04]} 46. Qe8+ {[%clk 0:00:07]}  Ka7 {[%clk 0:00:04]} 47. Nd7 {[%clk 0:00:04]}  Qg4+ {[%clk 0:00:03]} 48. Kh2 {[%clk 0:00:04]}  Qg2# {[%clk 0:00:03]} 0-1


[Site "https://www.chess.com"]

[Event "Titled Tuesday Blitz March 29 Early 2022"]
[White "Nakamura, Hikaru"]
[Black "Timofeev, Artyom"]
[WhiteFideId "2016192"]
[BlackFideId "4140419"]
[WhiteElo "2850"]
[BlackElo "2594"]
[Result "1-0"]
[Round "04"]
[TimeControl "180+1"]
[Date "2022.03.29"]
[WhiteClock "0:00:50"]
[BlackClock "0:00:31"]

1. Nf3 {[%clk 0:03:00]}  c5 {[%clk 0:03:00]} 2. b3 {[%clk 0:03:01]}  d6 {[%clk 0:02:58]} 3. d4 {[%clk 0:02:59]}  cxd4 {[%clk 0:02:58]} 4. Nxd4 {[%clk 0:03:00]}  Nf6 {[%clk 0:02:58]} 5. Bb2 {[%clk 0:03:00]}  g6 {[%clk 0:02:59]} 6. e3 {[%clk 0:02:59]}  Bg7 {[%clk 0:02:59]} 7. c4 {[%clk 0:02:59]}  O-O {[%clk 0:02:59]} 8. Be2 {[%clk 0:03:00]}  Nc6 {[%clk 0:02:58]} 9. Nxc6 {[%clk 0:02:59]}  bxc6 {[%clk 0:02:58]} 10. O-O {[%clk 0:03:00]}  c5 {[%clk 0:02:56]} 11. Nc3 {[%clk 0:02:55]}  Bb7 {[%clk 0:02:55]} 12. Qc2 {[%clk 0:02:55]}  Qb6 {[%clk 0:02:46]} 13. Rab1 {[%clk 0:02:50]}  Rfd8 {[%clk 0:02:44]} 14. Rfd1 {[%clk 0:02:50]}  Rac8 {[%clk 0:02:43]} 15. e4 {[%clk 0:02:50]}  Nd7 {[%clk 0:02:34]} 16. Nd5 {[%clk 0:02:47]}  Bxd5 {[%clk 0:02:34]} 17. exd5 {[%clk 0:02:48]}  Bxb2 {[%clk 0:02:34]} 18. Rxb2 {[%clk 0:02:47]}  Nf6 {[%clk 0:02:32]} 19. Re1 {[%clk 0:02:46]}  Re8 {[%clk 0:02:31]} 20. Bf3 {[%clk 0:02:41]}  a5 {[%clk 0:02:27]} 21. g4 {[%clk 0:02:35]}  h6 {[%clk 0:02:24]} 22. Qc1 {[%clk 0:02:33]}  Kg7 {[%clk 0:02:23]} 23. Rbe2 {[%clk 0:02:33]}  Rc7 {[%clk 0:02:18]} 24. h4 {[%clk 0:02:33]}  a4 {[%clk 0:02:14]} 25. g5 {[%clk 0:02:23]}  hxg5 {[%clk 0:02:14]} 26. hxg5 {[%clk 0:02:23]}  Ng8 {[%clk 0:02:11]} 27. Qc3+ {[%clk 0:02:16]}  Kf8 {[%clk 0:02:12]} 28. Kg2 {[%clk 0:02:11]}  axb3 {[%clk 0:02:11]} 29. axb3 {[%clk 0:02:11]}  Rb8 {[%clk 0:02:11]} 30. Re3 {[%clk 0:02:09]}  Qb4 {[%clk 0:02:11]} 31. Qh8 {[%clk 0:02:09]}  Qd2 {[%clk 0:02:04]} 32. Rd1 {[%clk 0:02:07]}  Qc2 {[%clk 0:02:00]} 33. Bg4 {[%clk 0:01:36]}  Rxb3 {[%clk 0:01:33]} 34. Ra1 {[%clk 0:00:57]}  Rb8 {[%clk 0:01:33]} 35. Be6 {[%clk 0:00:55]}  fxe6 {[%clk 0:00:31]} 36. Rf3+ {[%clk 0:00:54]}  Qf5 {[%clk 0:00:31]} 37. dxe6 {[%clk 0:00:50]} 1-0


[Site "https://www.chess.com"]

[Event "Titled Tuesday Blitz March 29 Early 2022"]
[White "Nan, M K Khine Hlyan"]
[Black "Pourkashiyan, Atousa"]
[WhiteFideId "13002899"]
[BlackFideId "12502014"]
[WhiteElo "1943"]
[BlackElo "2247"]
[Result "0-1"]
[Round "04"]
[TimeControl "180+1"]
[Date "2022.03.30"]
[WhiteClock "0:00:13"]
[BlackClock "0:00:59"]

1. e4 {[%clk 0:02:57]}  c5 {[%clk 0:02:20]} 2. Nf3 {[%clk 0:02:53]}  e6 {[%clk 0:02:19]} 3. d4 {[%clk 0:02:51]}  cxd4 {[%clk 0:02:20]} 4. Nxd4 {[%clk 0:02:51]}  a6 {[%clk 0:02:21]} 5. Nc3 {[%clk 0:02:49]}  Qc7 {[%clk 0:02:21]} 6. Be3 {[%clk 0:02:45]}  Nf6 {[%clk 0:02:21]} 7. Bd3 {[%clk 0:02:43]}  Bb4 {[%clk 0:02:21]} 8. Bd2 {[%clk 0:02:36]}  Nc6 {[%clk 0:02:19]} 9. Nxc6 {[%clk 0:02:32]}  dxc6 {[%clk 0:02:20]} 10. O-O {[%clk 0:02:31]}  Be7 {[%clk 0:02:19]} 11. Ne2 {[%clk 0:02:26]}  O-O {[%clk 0:02:17]} 12. Bc3 {[%clk 0:02:25]}  e5 {[%clk 0:02:16]} 13. f4 {[%clk 0:02:21]}  Bd6 {[%clk 0:02:13]} 14. f5 {[%clk 0:02:18]}  b5 {[%clk 0:02:12]} 15. a3 {[%clk 0:02:16]}  c5 {[%clk 0:02:07]} 16. Ng3 {[%clk 0:02:08]}  Bb7 {[%clk 0:02:05]} 17. Kh1 {[%clk 0:02:06]}  c4 {[%clk 0:02:04]} 18. Be2 {[%clk 0:02:05]}  Bxe4 {[%clk 0:01:59]} 19. Nxe4 {[%clk 0:02:03]}  Nxe4 {[%clk 0:01:59]} 20. Bf3 {[%clk 0:02:03]}  Nxc3 {[%clk 0:01:55]} 21. bxc3 {[%clk 0:02:00]}  Rad8 {[%clk 0:01:55]} 22. Qe1 {[%clk 0:01:54]}  f6 {[%clk 0:01:52]} 23. Bd5+ {[%clk 0:01:50]}  Kh8 {[%clk 0:01:52]} 24. Be6 {[%clk 0:01:49]}  Bc5 {[%clk 0:01:46]} 25. Qh4 {[%clk 0:01:48]}  Rd2 {[%clk 0:01:24]} 26. Rf3 {[%clk 0:01:39]}  h6 {[%clk 0:01:24]} 27. Rh3 {[%clk 0:01:18]}  Rfd8 {[%clk 0:01:22]} 28. Qe1 {[%clk 0:01:14]}  Rxc2 {[%clk 0:01:13]} 29. Rd1 {[%clk 0:00:31]}  Bf2 {[%clk 0:01:08]} 30. Qf1 {[%clk 0:00:26]}  Rdd2 {[%clk 0:01:06]} 31. Rxd2 {[%clk 0:00:22]}  Rxd2 {[%clk 0:01:07]} 32. Rf3 {[%clk 0:00:21]}  Qc5 {[%clk 0:01:05]} 33. h3 {[%clk 0:00:18]}  e4 {[%clk 0:01:00]} 34. Rxf2 {[%clk 0:00:14]}  Qxf2 {[%clk 0:00:59]} 35. Qd1 {[%clk 0:00:15]}  Rxd1+ {[%clk 0:00:59]} 36. Kh2 {[%clk 0:00:13]}  Qf4+ {[%clk 0:00:59]} 0-1


[Site "https://www.chess.com"]

[Event "Titled Tuesday Blitz March 29 Early 2022"]
[White "Nozdrachev, Leonid"]
[Black "Federzoni, Enzo"]
[WhiteFideId "24113433"]
[BlackFideId "2173301"]
[WhiteElo "2118"]
[BlackElo "1956"]
[Result "1-0"]
[Round "04"]
[TimeControl "180+1"]
[Date "2022.03.30"]
[WhiteClock "0:01:27"]
[BlackClock "0:01:39"]

1. e4 {[%clk 0:02:59]}  c5 {[%clk 0:02:51]} 2. c3 {[%clk 0:02:58]}  e6 {[%clk 0:02:47]} 3. d4 {[%clk 0:02:57]}  d5 {[%clk 0:02:48]} 4. e5 {[%clk 0:02:55]}  Nc6 {[%clk 0:02:45]} 5. Nf3 {[%clk 0:02:55]}  Qb6 {[%clk 0:02:40]} 6. Bd3 {[%clk 0:02:53]}  cxd4 {[%clk 0:02:38]} 7. cxd4 {[%clk 0:02:54]}  Bd7 {[%clk 0:02:36]} 8. O-O {[%clk 0:02:52]}  Nge7 {[%clk 0:02:29]} 9. Nc3 {[%clk 0:02:41]}  Nf5 {[%clk 0:02:25]} 10. Bxf5 {[%clk 0:02:39]}  exf5 {[%clk 0:02:26]} 11. Nxd5 {[%clk 0:02:40]}  Qd8 {[%clk 0:02:24]} 12. Bg5 {[%clk 0:02:38]}  Qa5 {[%clk 0:02:20]} 13. Nc3 {[%clk 0:02:31]}  Bb4 {[%clk 0:02:17]} 14. d5 {[%clk 0:02:31]}  Ne7 {[%clk 0:02:13]} 15. e6 {[%clk 0:02:15]}  fxe6 {[%clk 0:02:10]} 16. dxe6 {[%clk 0:02:15]}  Bxe6 {[%clk 0:02:09]} 17. Re1 {[%clk 0:02:15]}  Bf7 {[%clk 0:02:07]} 18. Bxe7 {[%clk 0:02:07]}  Bxe7 {[%clk 0:02:07]} 19. Qd6 {[%clk 0:02:08]}  Qd8 {[%clk 0:02:05]} 20. Rxe7+ {[%clk 0:02:08]}  Qxe7 {[%clk 0:02:04]} 21. Re1 {[%clk 0:02:09]}  Qxe1+ {[%clk 0:02:04]} 22. Nxe1 {[%clk 0:02:08]}  Rd8 {[%clk 0:02:05]} 23. Qc7 {[%clk 0:02:02]}  O-O {[%clk 0:02:00]} 24. Qxb7 {[%clk 0:02:00]}  Rfe8 {[%clk 0:02:01]} 25. Nf3 {[%clk 0:01:59]}  Bh5 {[%clk 0:01:57]} 26. h3 {[%clk 0:01:58]}  Bxf3 {[%clk 0:01:56]} 27. gxf3 {[%clk 0:01:59]}  h6 {[%clk 0:01:55]} 28. Qxa7 {[%clk 0:01:58]}  Rd2 {[%clk 0:01:53]} 29. Qa4 {[%clk 0:01:53]}  Re1+ {[%clk 0:01:52]} 30. Kg2 {[%clk 0:01:53]}  h5 {[%clk 0:01:51]} 31. Qb5 {[%clk 0:01:49]}  g6 {[%clk 0:01:49]} 32. a4 {[%clk 0:01:48]}  Rc1 {[%clk 0:01:48]} 33. a5 {[%clk 0:01:46]}  Rcc2 {[%clk 0:01:49]} 34. Qb3+ {[%clk 0:01:37]}  Kh7 {[%clk 0:01:48]} 35. Qxc2 {[%clk 0:01:30]}  Rxc2 {[%clk 0:01:46]} 36. a6 {[%clk 0:01:31]}  Rd2 {[%clk 0:01:46]} 37. b4 {[%clk 0:01:29]}  Kg7 {[%clk 0:01:41]} 38. a7 {[%clk 0:01:27]}  Rd8 {[%clk 0:01:40]} 39. b5 {[%clk 0:01:28]}  Kf7 {[%clk 0:01:39]} 40. b6 {[%clk 0:01:27]} 1-0


[Site "https://www.chess.com"]

[Event "Titled Tuesday Blitz March 29 Early 2022"]
[White "Osmonbekov, Talaibek"]
[Black "Glavina, Pablo"]
[WhiteFideId "2017253"]
[BlackFideId "100234"]
[WhiteElo "2135"]
[BlackElo "2369"]
[Result "1-0"]
[Round "04"]
[TimeControl "180+1"]
[Date "2022.03.30"]
[WhiteClock "0:00:12"]
[BlackClock "0:00:04"]

1. d4 {[%clk 0:03:00]}  d5 {[%clk 0:02:47]} 2. Nc3 {[%clk 0:03:01]}  Nf6 {[%clk 0:02:45]} 3. Bf4 {[%clk 0:03:01]}  c5 {[%clk 0:02:40]} 4. e3 {[%clk 0:03:01]}  cxd4 {[%clk 0:02:31]} 5. exd4 {[%clk 0:03:01]}  Bf5 {[%clk 0:02:30]} 6. Nf3 {[%clk 0:02:50]}  Nc6 {[%clk 0:02:28]} 7. Ne5 {[%clk 0:02:42]}  e6 {[%clk 0:02:21]} 8. Bb5 {[%clk 0:02:34]}  Qb6 {[%clk 0:02:16]} 9. g4 {[%clk 0:02:20]}  Bg6 {[%clk 0:02:12]} 10. h4 {[%clk 0:02:20]}  Bb4 {[%clk 0:02:08]} 11. Bxc6+ {[%clk 0:02:07]}  bxc6 {[%clk 0:02:08]} 12. h5 {[%clk 0:02:08]}  Be4 {[%clk 0:02:08]} 13. f3 {[%clk 0:02:08]}  c5 {[%clk 0:01:54]} 14. a3 {[%clk 0:01:55]}  Bxc3+ {[%clk 0:01:40]} 15. bxc3 {[%clk 0:01:55]}  cxd4 {[%clk 0:01:30]} 16. cxd4 {[%clk 0:01:47]}  Qa5+ {[%clk 0:01:08]} 17. Kf1 {[%clk 0:01:37]}  Rc8 {[%clk 0:00:03]} 18. fxe4 {[%clk 0:01:36]}  Nxe4 {[%clk 0:00:04]} 19. Rh2 {[%clk 0:01:25]}  f6 {[%clk 0:00:04]} 20. Nd3 {[%clk 0:01:17]}  Qc3 {[%clk 0:00:05]} 21. Be3 {[%clk 0:01:08]}  O-O {[%clk 0:00:05]} 22. Qe1 {[%clk 0:01:03]}  e5 {[%clk 0:00:05]} 23. Qxc3 {[%clk 0:01:01]}  Rxc3 {[%clk 0:00:05]} 24. dxe5 {[%clk 0:00:59]}  fxe5+ {[%clk 0:00:06]} 25. Kg1 {[%clk 0:00:57]}  d4 {[%clk 0:00:06]} 26. Bc1 {[%clk 0:00:51]}  Re8 {[%clk 0:00:04]} 27. Bb2 {[%clk 0:00:50]}  Rcc8 {[%clk 0:00:03]} 28. Re1 {[%clk 0:00:50]}  Nf6 {[%clk 0:00:01]} 29. g5 {[%clk 0:00:46]}  Ng4 {[%clk 0:00:01]} 30. Rhe2 {[%clk 0:00:39]}  Ne3 {[%clk 0:00:02]} 31. Nxe5 {[%clk 0:00:29]}  Rxe5 {[%clk 0:00:02]} 32. Bxd4 {[%clk 0:00:29]}  Rxg5+ {[%clk 0:00:02]} 33. Kf2 {[%clk 0:00:27]}  Nxc2 {[%clk 0:00:03]} 34. Rc1 {[%clk 0:00:20]}  Nxd4 {[%clk 0:00:02]} 35. Rxc8+ {[%clk 0:00:19]}  Kf7 {[%clk 0:00:03]} 36. Rc7+ {[%clk 0:00:19]}  Kf6 {[%clk 0:00:03]} 37. Rd2 {[%clk 0:00:18]}  Rf5+ {[%clk 0:00:03]} 38. Ke3 {[%clk 0:00:18]}  Ne6 {[%clk 0:00:04]} 39. Rxa7 {[%clk 0:00:17]}  Re5+ {[%clk 0:00:05]} 40. Kf2 {[%clk 0:00:16]}  Rxh5 {[%clk 0:00:06]} 41. a4 {[%clk 0:00:16]}  Rf5+ {[%clk 0:00:07]} 42. Kg1 {[%clk 0:00:15]}  Nc5 {[%clk 0:00:07]} 43. a5 {[%clk 0:00:15]}  Nb3 {[%clk 0:00:08]} 44. Rd6+ {[%clk 0:00:14]}  Kg5 {[%clk 0:00:08]} 45. Rxg7+ {[%clk 0:00:14]}  Kh5 {[%clk 0:00:08]} 46. Rxh7+ {[%clk 0:00:14]}  Kg4 {[%clk 0:00:08]} 47. Rg7+ {[%clk 0:00:13]}  Kf3 {[%clk 0:00:08]} 48. a6 {[%clk 0:00:13]}  Ra5 {[%clk 0:00:08]} 49. Rd3+ {[%clk 0:00:13]}  Ke2 {[%clk 0:00:07]} 50. Rxb3 {[%clk 0:00:13]}  Rxa6 {[%clk 0:00:08]} 51. Rg2+ {[%clk 0:00:12]}  Ke1 {[%clk 0:00:07]} 52. Rf3 {[%clk 0:00:13]}  Rf6 {[%clk 0:00:04]} 53. Rxf6 {[%clk 0:00:12]} 1-0


[Site "https://www.chess.com"]

[Event "Titled Tuesday Blitz March 29 Early 2022"]
[White "Pakleza, Zbigniew"]
[Black "Tsyhanchuk, Stanislav"]
[WhiteFideId "1119290"]
[BlackFideId "13505130"]
[WhiteElo "2467"]
[BlackElo "2078"]
[Result "0-1"]
[Round "04"]
[TimeControl "180+1"]
[Date "2022.03.29"]
[WhiteClock "0:00:07"]
[BlackClock "0:00:18"]

1. d4 {[%clk 0:03:00]}  Nf6 {[%clk 0:03:00]} 2. Nf3 {[%clk 0:03:00]}  e6 {[%clk 0:02:59]} 3. Bf4 {[%clk 0:03:00]}  c5 {[%clk 0:02:59]} 4. c3 {[%clk 0:03:00]}  Nc6 {[%clk 0:02:59]} 5. e3 {[%clk 0:03:00]}  d5 {[%clk 0:03:00]} 6. Nbd2 {[%clk 0:03:00]}  Bd6 {[%clk 0:03:00]} 7. Bg3 {[%clk 0:03:01]}  O-O {[%clk 0:03:01]} 8. Bd3 {[%clk 0:03:01]}  b6 {[%clk 0:03:01]} 9. Ne5 {[%clk 0:03:00]}  Bb7 {[%clk 0:02:59]} 10. f4 {[%clk 0:03:01]}  Ne7 {[%clk 0:02:59]} 11. Qb1 {[%clk 0:03:01]}  cxd4 {[%clk 0:02:34]} 12. exd4 {[%clk 0:03:00]}  a5 {[%clk 0:02:22]} 13. Bh4 {[%clk 0:02:49]}  Ng6 {[%clk 0:02:19]} 14. Nxg6 {[%clk 0:02:19]}  hxg6 {[%clk 0:02:20]} 15. g3 {[%clk 0:02:13]}  Ba6 {[%clk 0:02:01]} 16. O-O {[%clk 0:02:05]}  Bxd3 {[%clk 0:01:59]} 17. Qxd3 {[%clk 0:02:05]}  Be7 {[%clk 0:01:56]} 18. Rae1 {[%clk 0:02:01]}  Ng4 {[%clk 0:01:53]} 19. Bxe7 {[%clk 0:01:59]}  Qxe7 {[%clk 0:01:54]} 20. f5 {[%clk 0:01:47]}  gxf5 {[%clk 0:01:39]} 21. Qxf5 {[%clk 0:01:43]}  exf5 {[%clk 0:01:28]} 22. Rxe7 {[%clk 0:01:44]}  Rfe8 {[%clk 0:01:27]} 23. Rfe1 {[%clk 0:01:34]}  Kf8 {[%clk 0:01:27]} 24. Rxe8+ {[%clk 0:01:28]}  Rxe8 {[%clk 0:01:28]} 25. Rxe8+ {[%clk 0:01:29]}  Kxe8 {[%clk 0:01:26]} 26. c4 {[%clk 0:00:55]}  Kd7 {[%clk 0:01:11]} 27. cxd5 {[%clk 0:00:43]}  Kd6 {[%clk 0:01:10]} 28. Nc4+ {[%clk 0:00:43]}  Kxd5 {[%clk 0:01:10]} 29. Nxb6+ {[%clk 0:00:43]}  Kxd4 {[%clk 0:01:10]} 30. Kg2 {[%clk 0:00:29]}  g6 {[%clk 0:01:04]} 31. h3 {[%clk 0:00:27]}  Ne3+ {[%clk 0:01:03]} 32. Kf3 {[%clk 0:00:28]}  Nc2 {[%clk 0:00:46]} 33. Kf4 {[%clk 0:00:24]}  Nb4 {[%clk 0:00:38]} 34. b3 {[%clk 0:00:14]}  Nxa2 {[%clk 0:00:31]} 35. Kg5 {[%clk 0:00:10]}  Nc3 {[%clk 0:00:31]} 36. Nc4 {[%clk 0:00:09]}  a4 {[%clk 0:00:28]} 37. bxa4 {[%clk 0:00:10]}  Kxc4 {[%clk 0:00:24]} 38. Kf6 {[%clk 0:00:10]}  Ne4+ {[%clk 0:00:17]} 39. Kxf7 {[%clk 0:00:11]}  g5 {[%clk 0:00:17]} 40. Ke6 {[%clk 0:00:08]}  f4 {[%clk 0:00:17]} 41. gxf4 {[%clk 0:00:07]}  gxf4 {[%clk 0:00:18]} 0-1


[Site "https://www.chess.com"]

[Event "Titled Tuesday Blitz March 29 Early 2022"]
[White "Perera Alfonso, Rene Humberto"]
[Black "Papp, Petra"]
[WhiteFideId "3514722"]
[BlackFideId "739049"]
[WhiteElo "2313"]
[BlackElo "2259"]
[Result "0-1"]
[Round "04"]
[TimeControl "180+1"]
[Date "2022.03.30"]
[WhiteClock "0:00:10"]
[BlackClock "0:00:32"]

1. e4 {[%clk 0:03:00]}  e5 {[%clk 0:02:58]} 2. Nf3 {[%clk 0:01:59]}  Nc6 {[%clk 0:02:56]} 3. Bb5 {[%clk 0:01:59]}  a6 {[%clk 0:02:55]} 4. Ba4 {[%clk 0:01:59]}  Nf6 {[%clk 0:02:55]} 5. O-O {[%clk 0:01:59]}  Be7 {[%clk 0:02:55]} 6. Re1 {[%clk 0:01:59]}  b5 {[%clk 0:02:55]} 7. Bb3 {[%clk 0:02:00]}  O-O {[%clk 0:02:55]} 8. a4 {[%clk 0:02:00]}  Rb8 {[%clk 0:02:52]} 9. axb5 {[%clk 0:01:58]}  axb5 {[%clk 0:02:53]} 10. d3 {[%clk 0:01:59]}  d5 {[%clk 0:02:38]} 11. exd5 {[%clk 0:01:58]}  Nxd5 {[%clk 0:02:38]} 12. Nxe5 {[%clk 0:01:59]}  Nxe5 {[%clk 0:02:39]} 13. Rxe5 {[%clk 0:02:00]}  c6 {[%clk 0:02:38]} 14. Qf3 {[%clk 0:01:59]}  Bd6 {[%clk 0:02:34]} 15. Re1 {[%clk 0:01:58]}  Qh4 {[%clk 0:02:21]} 16. g3 {[%clk 0:01:58]}  Qh3 {[%clk 0:02:18]} 17. Nc3 {[%clk 0:01:56]}  Nxc3 {[%clk 0:01:48]} 18. bxc3 {[%clk 0:01:57]}  Bg4 {[%clk 0:01:48]} 19. Qg2 {[%clk 0:01:57]}  Qh5 {[%clk 0:01:48]} 20. Be3 {[%clk 0:01:36]}  Bf3 {[%clk 0:01:45]} 21. Qf1 {[%clk 0:01:36]}  Kh8 {[%clk 0:01:41]} 22. c4 {[%clk 0:01:26]}  f5 {[%clk 0:01:28]} 23. Ra7 {[%clk 0:01:25]}  Be5 {[%clk 0:01:01]} 24. Bc5 {[%clk 0:01:21]}  f4 {[%clk 0:00:47]} 25. Bxf8 {[%clk 0:01:16]}  Rxf8 {[%clk 0:00:42]} 26. h4 {[%clk 0:00:12]}  fxg3 {[%clk 0:00:37]} 27. Re7 {[%clk 0:00:10]}  Qxh4 {[%clk 0:00:32]} 0-1


[Site "https://www.chess.com"]

[Event "Titled Tuesday Blitz March 29 Early 2022"]
[White "Perez Gormaz, Matias"]
[Black "Bacrot, Etienne"]
[WhiteFideId "3406342"]
[BlackFideId "605506"]
[WhiteElo "2327"]
[BlackElo "2673"]
[Result "1-0"]
[Round "04"]
[TimeControl "180+1"]
[Date "2022.03.29"]
[WhiteClock "0:00:16"]
[BlackClock "0:00:05"]

1. e4 {[%clk 0:03:00]}  c5 {[%clk 0:02:59]} 2. Nf3 {[%clk 0:03:01]}  d6 {[%clk 0:02:59]} 3. d4 {[%clk 0:03:02]}  cxd4 {[%clk 0:03:00]} 4. Nxd4 {[%clk 0:03:03]}  Nf6 {[%clk 0:03:00]} 5. Nc3 {[%clk 0:03:04]}  Nc6 {[%clk 0:03:00]} 6. Be2 {[%clk 0:03:03]}  g6 {[%clk 0:02:59]} 7. Be3 {[%clk 0:03:03]}  Bg7 {[%clk 0:02:59]} 8. O-O {[%clk 0:03:03]}  O-O {[%clk 0:02:59]} 9. Qd2 {[%clk 0:03:02]}  Bd7 {[%clk 0:02:58]} 10. Rfd1 {[%clk 0:03:02]}  Qa5 {[%clk 0:02:57]} 11. Nb3 {[%clk 0:03:01]}  Qd8 {[%clk 0:02:52]} 12. Bg5 {[%clk 0:02:56]}  Rc8 {[%clk 0:02:47]} 13. Re1 {[%clk 0:02:50]}  Ne5 {[%clk 0:02:40]} 14. Rad1 {[%clk 0:02:50]}  Rxc3 {[%clk 0:02:34]} 15. Qxc3 {[%clk 0:02:45]}  Nxe4 {[%clk 0:02:32]} 16. Qe3 {[%clk 0:02:45]}  Nxg5 {[%clk 0:02:27]} 17. Qxg5 {[%clk 0:02:46]}  Bf6 {[%clk 0:02:18]} 18. Qe3 {[%clk 0:02:46]}  a5 {[%clk 0:02:15]} 19. Nd4 {[%clk 0:02:42]}  Qc7 {[%clk 0:02:08]} 20. b3 {[%clk 0:02:39]}  Nc6 {[%clk 0:02:02]} 21. Nb5 {[%clk 0:02:37]}  Qb8 {[%clk 0:01:58]} 22. c4 {[%clk 0:02:38]}  Nb4 {[%clk 0:01:56]} 23. Qd2 {[%clk 0:02:39]}  b6 {[%clk 0:01:31]} 24. Nc3 {[%clk 0:02:39]}  Bxc3 {[%clk 0:01:18]} 25. Qxc3 {[%clk 0:02:36]}  Nxa2 {[%clk 0:01:18]} 26. Qe3 {[%clk 0:02:35]}  Re8 {[%clk 0:01:15]} 27. Bf3 {[%clk 0:02:34]}  Nb4 {[%clk 0:01:14]} 28. Qd2 {[%clk 0:02:34]}  Na6 {[%clk 0:01:13]} 29. h4 {[%clk 0:02:35]}  Qc8 {[%clk 0:00:43]} 30. h5 {[%clk 0:02:32]}  Bg4 {[%clk 0:00:40]} 31. h6 {[%clk 0:02:31]}  Bxf3 {[%clk 0:00:37]} 32. Qc3 {[%clk 0:02:29]}  f6 {[%clk 0:00:33]} 33. Qxf3 {[%clk 0:02:28]}  Nc5 {[%clk 0:00:25]} 34. Re3 {[%clk 0:02:16]}  Kf7 {[%clk 0:00:16]} 35. Qd5+ {[%clk 0:02:08]}  Kf8 {[%clk 0:00:17]} 36. Qf3 {[%clk 0:02:08]}  Qf5 {[%clk 0:00:16]} 37. Qc6 {[%clk 0:01:48]}  Qc8 {[%clk 0:00:09]} 38. Qf3 {[%clk 0:01:41]}  Qb7 {[%clk 0:00:08]} 39. Qf4 {[%clk 0:01:33]}  Qc6 {[%clk 0:00:08]} 40. Rd5 {[%clk 0:01:08]}  Kf7 {[%clk 0:00:08]} 41. Rd1 {[%clk 0:01:02]}  Qd7 {[%clk 0:00:06]} 42. Qd4 {[%clk 0:00:58]}  Qc6 {[%clk 0:00:06]} 43. Rde1 {[%clk 0:00:57]}  e5 {[%clk 0:00:06]} 44. Qd1 {[%clk 0:00:56]}  Ne6 {[%clk 0:00:06]} 45. Rd3 {[%clk 0:00:56]}  Nd4 {[%clk 0:00:06]} 46. Qg4 {[%clk 0:00:29]}  Qc8 {[%clk 0:00:06]} 47. Qe4 {[%clk 0:00:28]}  Qa8 {[%clk 0:00:06]} 48. Qg4 {[%clk 0:00:20]}  Qc8 {[%clk 0:00:05]} 49. Qe4 {[%clk 0:00:20]}  f5 {[%clk 0:00:05]} 50. Qd5+ {[%clk 0:00:19]}  Qe6 {[%clk 0:00:04]} 51. Qb7+ {[%clk 0:00:20]}  Re7 {[%clk 0:00:05]} 52. Qxb6 {[%clk 0:00:19]}  Qf6 {[%clk 0:00:04]} 53. Qxa5 {[%clk 0:00:17]}  f4 {[%clk 0:00:05]} 54. Qd5+ {[%clk 0:00:18]}  Qe6 {[%clk 0:00:04]} 55. Rxd4 {[%clk 0:00:14]}  exd4 {[%clk 0:00:03]} 56. Rxe6 {[%clk 0:00:15]}  Rxe6 {[%clk 0:00:04]} 57. Qxd4 {[%clk 0:00:15]}  g5 {[%clk 0:00:05]} 58. Qd5 {[%clk 0:00:16]} 1-0


[Site "https://www.chess.com"]